fUSD/lending_fUSD_20250702
["ID","MTS","AMOUNT","RATE_DAILY","PERIOD"]
[369082747,1751461845757,-460.0,0.00032876,12]
[369082749,1751461845767,-490.0,0.00032876,12]
[369082751,1751461845776,-460.0,0.00032876,12]
[369082753,1751461845786,-490.0,0.00032876,12]
[369082755,1751461845795,-1686.95,0.00032876,12]
[369082765,1751461845893,-460.0,0.00032876,12]
[369082767,1751461845903,-1397.36,0.00032876,12]
[369082769,1751461845913,-490.0,0.00032876,12]
[369082771,1751461845925,-460.0,0.00032876,12]
[369082773,1751461845935,-460.0,0.00032876,12]
[369082775,1751461845944,-762.46,0.00032876,12]
[369082777,1751461845955,-321.18452723,0.00032876,12]
[369082780,1751461845965,-520.0,0.00032876,12]
[369082782,1751461845974,-525.41418769,0.00032876,12]
[369082784,1751461845983,-460.0,0.00032876,12]
[369082786,1751461845993,-460.0,0.00032876,12]
[369082788,1751461846003,-508.94,0.00032876,12]
[369082789,1751461846012,-520.0,0.00032876,12]
[369082791,1751461846022,-460.0,0.00032876,12]
[369082793,1751461846031,-460.0,0.00032876,12]
[369082795,1751461846041,-460.0,0.00032876,12]
[369082797,1751461846051,-460.0,0.00032876,12]
[369082799,1751461846061,-460.0,0.00032876,12]
[369082801,1751461846070,-490.0,0.00032876,12]
[369082803,1751461846079,-460.0,0.00032876,12]
[369082805,1751461846089,-1101.8,0.00032876,12]
[369082807,1751461846098,-460.0,0.00032876,12]
[369082809,1751461846108,-520.0,0.00032876,12]
[369082811,1751461846117,-460.0,0.00032876,12]
[369082813,1751461846127,-490.0,0.00032876,12]
[369082815,1751461846136,-460.0,0.00032876,12]
[369082817,1751461846145,-460.0,0.00032876,12]
[369082819,1751461846155,-490.0,0.00032876,12]
[369082821,1751461846165,-460.0,0.00032876,12]
[369082823,1751461846174,-460.0,0.00032876,12]
[369082825,1751461846183,-460.0,0.00032876,12]
[369082827,1751461846193,-1187.75,0.00032876,12]
[369082828,1751461846203,-1405.32,0.00032876,12]
[369082830,1751461846212,-490.0,0.00032876,12]
[369082832,1751461846221,-490.0,0.00032876,12]
[369082834,1751461846231,-460.0,0.00032876,12]
[369082836,1751461846241,-460.0,0.00032876,12]
[369082838,1751461846250,-460.0,0.00032876,12]
[369082840,1751461846259,-1238.87,0.00032876,12]
[369082842,1751461846269,-683.11,0.00032876,12]
[369082844,1751461846278,-851.5,0.00032876,12]
[369082846,1751461846288,-520.0,0.00032876,12]
[369082848,1751461846297,-460.0,0.00032876,12]
[369082850,1751461846307,-1078.77,0.00032876,12]
[369082852,1751461846316,-460.0,0.00032876,12]
[369082854,1751461846326,-314.05527431,0.00032876,12]
[369082856,1751461846335,-662.15,0.00032876,12]
[369082858,1751461846344,-460.0,0.00032876,12]
[369082860,1751461846354,-520.0,0.00032876,12]
[369082862,1751461846363,-463.64,0.00032876,12]
[369082864,1751461846372,-490.0,0.00032876,10]
[369082866,1751461846382,-1630.15,0.00032876,12]
[369082868,1751461846391,-460.0,0.00032876,12]
[369082869,1751461846401,-460.0,0.00032876,12]
[369082871,1751461846410,-460.0,0.00032876,12]
[369082873,1751461846420,-460.0,0.00032876,12]
[369082875,1751461846429,-490.0,0.00032876,12]
[369082876,1751461846439,-1017.62,0.00032876,12]
[369082877,1751461846448,-527.48,0.00032876,12]
[369082878,1751461846457,-278.55150099,0.00032876,12]
[369082879,1751461846466,-460.0,0.00032876,12]
[369082880,1751461846476,-460.0,0.00032876,12]
[369082881,1751461846485,-460.0,0.00032876,12]
[369082883,1751461846494,-460.0,0.00032876,12]
[369082884,1751461846503,-460.0,0.00032876,12]
[369082885,1751461846512,-460.0,0.00032876,12]
[369082886,1751461846521,-460.0,0.00032876,12]
[369082887,1751461846531,-460.0,0.00032876,12]
[369082888,1751461846540,-490.0,0.00032876,12]
[369082889,1751461846549,-460.0,0.00032876,12]
[369082890,1751461846559,-460.0,0.00032876,12]
[369082891,1751461846568,-460.0,0.00032876,12]
[369082892,1751461846577,-460.0,0.00032876,12]
[369082893,1751461846586,-608.54,0.00032876,12]
[369082894,1751461846595,-467.94,0.00032876,12]
[369082895,1751461846606,-460.0,0.00032876,12]
[369082896,1751461846616,-460.0,0.00032876,12]
[369082897,1751461846626,-460.0,0.00032876,12]
[369082898,1751461846635,-460.0,0.00032876,12]
[369082899,1751461846646,-1513.71,0.00032876,12]
[369082900,1751461846656,-1537.63,0.00032876,12]
[369082901,1751461846666,-460.0,0.00032876,12]
[369082902,1751461846676,-460.0,0.00032876,12]
[369082903,1751461846686,-460.0,0.00032876,12]
[369082904,1751461846695,-460.0,0.00032876,12]
[369082905,1751461846704,-460.0,0.00032876,12]
[369082906,1751461846715,-5467.22,0.00032876,12]
[369082907,1751461846724,-2974.55,0.00032876,12]
[369082908,1751461846733,-1527.48,0.00032876,12]
[369082909,1751461846743,-460.0,0.00032876,12]
[369082910,1751461846752,-1306.71,0.00032876,12]
[369082911,1751461846762,-520.0,0.00032876,12]
[369082912,1751461846773,-575.01,0.00032876,12]
[369082913,1751461846782,-460.0,0.00032876,12]
[369082914,1751461846792,-460.0,0.00032876,12]
[369082915,1751461846803,-460.0,0.00032876,12]
[369082916,1751461846812,-1333.33,0.00032876,12]
[369082917,1751461846821,-520.0,0.00032876,12]
[369082918,1751461846832,-1155.68,0.00032876,12]
[369082919,1751461846841,-445.0,0.00032876,2]
[369082920,1751461846850,-460.0,0.00032876,12]
[369082921,1751461846860,-817.02,0.00032876,12]
[369082922,1751461846869,-528.67694503,0.00032876,12]
[369082923,1751461846881,-1001.47,0.00032876,12]
[369082924,1751461846891,-460.0,0.00032876,12]
[369082925,1751461846900,-1231.62,0.00032876,12]
[369082926,1751461846910,-522.3521354,0.00032876,12]
[369082927,1751461846922,-573.22113693,0.00032876,12]
[369082928,1751461846931,-482.4689914,0.00032876,12]
[369082929,1751461846941,-885.45,0.00032876,12]
[369082930,1751461846950,-460.0,0.00032876,12]
[369082931,1751461846959,-1580.34,0.00032876,12]
[369082932,1751461846969,-460.0,0.00032876,12]
[369082933,1751461846978,-460.0,0.00032876,12]
[369082934,1751461846987,-3123.07,0.00032876,12]
[369082935,1751461846997,-460.0,0.00032876,12]
[369082936,1751461847006,-460.0,0.00032876,12]
[369082937,1751461847016,-460.0,0.00032876,12]
[369082938,1751461847026,-460.0,0.00032876,12]
[369082939,1751461847035,-585.9,0.00032876,12]
[369082940,1751461847046,-3665.44,0.00032876,12]
[369082941,1751461847055,-490.0,0.00032876,12]
[369082942,1751461847064,-460.0,0.00032876,12]
[369082943,1751461847074,-460.0,0.00032876,12]
[369082944,1751461847083,-1280.96,0.00032876,12]
[369082945,1751461847092,-156.50988848,0.00032876,12]
[369082946,1751461847102,-3077.93,0.00032876,12]
[369082947,1751461847112,-460.0,0.00032876,12]
[369082948,1751461847121,-523.33,0.00032876,12]
[369082949,1751461847131,-460.0,0.00032876,12]
[369082950,1751461847141,-460.0,0.00032876,12]
[369082951,1751461847151,-518.22,0.00032876,12]
[369082952,1751461847161,-490.0,0.00032876,12]
[369082953,1751461847171,-1596.79,0.00032876,12]
[369082954,1751461847180,-460.0,0.00032876,12]
[369082955,1751461847189,-460.0,0.00032876,12]
[369082956,1751461847199,-3060.73,0.00032876,12]
[369082957,1751461847208,-490.0,0.00032876,12]
[369082958,1751461847217,-2063.24,0.00032876,12]
[369082959,1751461847227,-490.0,0.00032876,12]
[369082960,1751461847236,-762.04,0.00032876,12]
[369082961,1751461847246,-460.0,0.00032876,12]
[369082962,1751461847255,-683.58,0.00032876,12]
[369082963,1751461847265,-460.0,0.00032876,12]
[369082964,1751461847274,-460.0,0.00032876,12]
[369082965,1751461847283,-1055.36,0.00032876,12]
[369082966,1751461847293,-460.0,0.00032876,12]
[369082967,1751461847302,-328.78559114,0.00032876,12]
[369082969,1751461847312,-460.0,0.00032876,12]
[369082970,1751461847321,-460.0,0.00032876,12]
[369082971,1751461847331,-409.51148827,0.00032876,12]
[369082972,1751461847341,-4094.89,0.00032876,12]
[369082973,1751461847350,-460.0,0.00032876,12]
[369082974,1751461847362,-520.0,0.00032876,12]
[369082975,1751461847372,-520.0,0.00032876,12]
[369082976,1751461847381,-460.0,0.00032876,12]
[369082977,1751461847390,-522.91716065,0.00032876,12]
[369082978,1751461847400,-1162.79,0.00032876,12]
[369082979,1751461847410,-925.98,0.00032876,12]
[369082980,1751461847420,-460.0,0.00032876,12]
[369082981,1751461847429,-2281.58,0.00032876,12]
[369082982,1751461847439,-658.5,0.00032876,12]
[369082983,1751461847448,-460.0,0.00032876,12]
[369082984,1751461847458,-460.0,0.00032876,12]
[369082985,1751461847467,-460.0,0.00032876,12]
[369082986,1751461847476,-460.0,0.00032876,12]
[369082987,1751461847485,-460.0,0.00032876,12]
[369082988,1751461847495,-577.04213907,0.00032876,12]
[369082989,1751461847504,-460.0,0.00032876,12]
[369082990,1751461847514,-490.0,0.00032876,12]
[369082991,1751461847524,-490.0,0.00032876,12]
[369082992,1751461847533,-460.0,0.00032876,12]
[369082993,1751461847542,-520.0,0.00032876,12]
[369082994,1751461847551,-460.0,0.00032876,12]
[369082995,1751461847561,-5725.79,0.00032876,12]
[369082996,1751461847570,-1397.04,0.00032876,12]
[369082997,1751461847579,-811.99,0.00032876,12]
[369082998,1751461847588,-460.0,0.00032876,12]
[369082999,1751461847598,-460.0,0.00032876,12]
[369083000,1751461847607,-1636.62,0.00032876,12]
[369083001,1751461847616,-460.0,0.00032876,12]
[369083002,1751461847626,-523.01847785,0.00032876,12]
[369083003,1751461847635,-1582.04,0.00032876,12]
[369083004,1751461847644,-460.0,0.00032876,12]
[369083005,1751461847654,-4601.53,0.00032876,12]
[369083006,1751461847663,-353.2701753,0.00032876,12]
[369083007,1751461847672,-460.0,0.00032876,12]
[369083008,1751461847682,-330.0390366,0.00032876,12]
[369083009,1751461847691,-460.0,0.00032876,12]
[369083010,1751461847700,-460.0,0.00032876,12]
[369083011,1751461847709,-8480.08,0.00032876,12]
[369083012,1751461847718,-460.0,0.00032876,12]
[369083013,1751461847727,-490.0,0.00032876,12]
[369083014,1751461847736,-460.0,0.00032876,12]
[369083015,1751461847746,-490.0,0.00032876,12]
[369083016,1751461847755,-731.19,0.00032876,12]
[369083017,1751461847764,-521.9179734,0.00032876,12]
[369083018,1751461847773,-460.0,0.00032876,12]
[369083019,1751461847783,-1604.32,0.00032876,12]
[369083020,1751461847792,-460.0,0.00032876,12]
[369083021,1751461847802,-423.62029055,0.00032876,12]
[369083022,1751461847811,-460.0,0.00032876,12]
[369083023,1751461847820,-2613.27,0.00032876,12]
[369083024,1751461847829,-460.0,0.00032876,12]
[369083025,1751461847838,-750.7,0.00032876,12]
[369083026,1751461847847,-1940.84,0.00032876,12]
[369083027,1751461847856,-460.0,0.00032876,12]
[369083028,1751461847865,-698.35,0.00032876,12]
[369083029,1751461847876,-460.0,0.00032876,12]
[369083030,1751461847886,-460.0,0.00032876,12]
[369083031,1751461847896,-524.44223444,0.00032876,12]
[369083032,1751461847905,-1250.67,0.00032876,12]
[369083033,1751461847915,-3292.69,0.00032876,12]
[369083034,1751461847925,-460.0,0.00032876,12]
[369083035,1751461847934,-460.0,0.00032876,12]
[369083036,1751461847943,-460.0,0.00032876,12]
[369083037,1751461847953,-1542.6,0.00032876,12]
[369083038,1751461847963,-460.0,0.00032876,12]
[369083039,1751461847973,-1564.55,0.00032876,12]
[369083040,1751461847983,-913.77,0.00032876,12]
[369083041,1751461847992,-740.82,0.00032876,12]
[369083042,1751461848002,-460.0,0.00032876,12]
[369083043,1751461848011,-460.0,0.00032876,12]
[369083044,1751461848020,-504.15,0.00032876,12]
[369083045,1751461848030,-460.0,0.00032876,12]
[369083046,1751461848040,-654.61,0.00032876,12]
[369083047,1751461848049,-460.0,0.00032876,12]
[369083048,1751461848058,-460.0,0.00032876,12]
[369083049,1751461848068,-924.19,0.00032876,12]
[369083050,1751461848077,-1058.08,0.00032876,12]
[369083051,1751461848087,-520.0,0.00032876,12]
[369083052,1751461848096,-2980.86,0.00032876,12]
[369083053,1751461848106,-460.0,0.00032876,12]
[369083054,1751461848116,-888.09,0.00032876,12]
[369083055,1751461848125,-362.2305536,0.00032876,12]
[369083056,1751461848135,-460.0,0.00032876,12]
[369083057,1751461848144,-460.0,0.00032876,12]
[369083058,1751461848155,-976.79,0.00032876,12]
[369083059,1751461848164,-460.0,0.00032876,2]
[369083060,1751461848174,-460.0,0.00032876,12]
[369083061,1751461848183,-699.06,0.00032876,12]
[369083062,1751461848192,-460.0,0.00032876,12]
[369083063,1751461848201,-1071.77,0.00032876,12]
[369083064,1751461848211,-1997.55,0.00032876,12]
[369083065,1751461848220,-460.0,0.00032876,12]
[369083066,1751461848229,-460.0,0.00032876,12]
[369083067,1751461848238,-460.0,0.00032876,12]
[369083068,1751461848248,-1614.08,0.00032876,12]
[369083069,1751461848257,-460.0,0.00032876,12]
[369083070,1751461848267,-1937.7,0.00032876,12]
[369083071,1751461848276,-520.0,0.00032876,12]
[369083072,1751461848285,-490.70822202,0.00032876,12]
[369083073,1751461848294,-1131.85,0.00032876,12]
[369083074,1751461848304,-460.0,0.00032876,12]
[369083075,1751461848313,-563.2,0.00032876,12]
[369083076,1751461848322,-460.0,0.00032876,12]
[369083077,1751461848332,-460.0,0.00032876,12]
[369083078,1751461848342,-460.0,0.00032876,12]
[369083079,1751461848351,-493.42653996,0.00032876,12]
[369083080,1751461848360,-1856.25,0.00032876,12]
[369083081,1751461848369,-460.0,0.00032876,12]
[369083082,1751461848379,-460.0,0.00032876,12]
[369083083,1751461848388,-628.55,0.00032876,12]
[369083084,1751461848398,-1652.06,0.00032876,12]
[369083085,1751461848407,-509.59,0.00032876,12]
[369083086,1751461848416,-460.0,0.00032876,12]
[369083087,1751461848426,-490.0,0.00032876,12]
[369083088,1751461848435,-460.0,0.00032876,12]
[369083089,1751461848444,-744.49,0.00032876,12]
[369083090,1751461848453,-460.0,0.00032876,12]
[369083091,1751461848463,-14337.64,0.00032876,12]
[369083092,1751461848472,-2455.06,0.00032876,12]
[369083093,1751461848481,-460.0,0.00032876,12]
[369083094,1751461848490,-490.0,0.00032876,12]
[369083095,1751461848499,-460.0,0.00032876,12]
[369083096,1751461848508,-2204.26,0.00032876,12]
[369083097,1751461848518,-1370.54,0.00032876,12]
[369083098,1751461848527,-490.0,0.00032876,12]
[369083099,1751461848537,-915.96,0.00032876,12]
[369083100,1751461848546,-520.0,0.00032876,12]
[369083101,1751461848555,-460.0,0.00032876,12]
[369083102,1751461848565,-460.0,0.00032876,12]
[369083103,1751461848574,-460.0,0.00032876,12]
[369083104,1751461848584,-460.0,0.00032876,12]
[369083105,1751461848594,-1254.67,0.00032876,12]
[369083106,1751461848604,-460.0,0.00032876,12]
[369083107,1751461848614,-460.0,0.00032876,12]
[369083108,1751461848624,-2861.45,0.00032876,12]
[369083109,1751461848633,-505.42872918,0.00032876,12]
[369083110,1751461848643,-460.0,0.00032876,12]
[369083111,1751461848652,-460.0,0.00032876,12]
[369083112,1751461848662,-460.0,0.00032876,12]
[369083113,1751461848672,-460.0,0.00032876,12]
[369083114,1751461848681,-554.52,0.00032876,12]
[369083115,1751461848691,-460.0,0.00032876,12]
[369083116,1751461848700,-493.0019289,0.00032876,12]
[369083117,1751461848710,-460.0,0.00032876,12]
[369083118,1751461848720,-460.0,0.00032876,12]
[369083119,1751461848729,-562.92,0.00032876,12]
[369083120,1751461848739,-503.424516,0.00032876,12]
[369083121,1751461848748,-5018.91,0.00032876,12]
[369083122,1751461848758,-460.0,0.00032876,12]
[369083123,1751461848768,-460.0,0.00032876,12]
[369083124,1751461848777,-9031.28,0.00032876,12]
[369083125,1751461848787,-3071.63,0.00032876,12]
[369083126,1751461848796,-520.0,0.00032876,12]
[369083127,1751461848806,-501.13130842,0.00032876,12]
[369083128,1751461848816,-490.0,0.00032876,12]
[369083129,1751461848825,-3123.89,0.00032876,12]
[369083130,1751461848835,-2011.36,0.00032876,12]
[369083131,1751461848844,-460.0,0.00032876,12]
[369083132,1751461848854,-1159.67,0.00032876,12]
[369083133,1751461848863,-748.35,0.00032876,12]
[369083134,1751461848873,-490.0,0.00032876,12]
[369083135,1751461848885,-151.03963705,0.00032876,2]
[369083136,1751461848894,-520.0,0.00032876,12]
[369083137,1751461848904,-460.0,0.00032876,12]
[369083138,1751461848913,-460.0,0.00032876,12]
[369083139,1751461848924,-1976.17,0.00032876,12]
[369083140,1751461848933,-1539.39,0.00032876,12]
[369083141,1751461848943,-460.0,0.00032876,12]
[369083142,1751461848952,-15106.95,0.00032876,12]
[369083143,1751461848963,-460.0,0.00032876,12]
[369083144,1751461848972,-460.0,0.00032876,12]
[369083145,1751461848982,-460.0,0.00032876,12]
[369083146,1751461848991,-150.0,0.00032876,2]
[369083147,1751461849001,-460.0,0.00032876,12]
[369083148,1751461849011,-1046.22,0.00032876,12]
[369083149,1751461849020,-460.0,0.00032876,12]
[369083150,1751461849030,-460.0,0.00032876,12]
[369083151,1751461849039,-460.0,0.00032876,12]
[369083152,1751461849049,-2599.47,0.00032876,12]
[369083153,1751461849058,-1910.73,0.00032876,12]
[369083154,1751461849068,-1297.63,0.00032876,12]
[369083155,1751461849078,-639.56,0.00032876,12]
[369083156,1751461849088,-730.55,0.00032876,12]
[369083157,1751461849097,-1382.67,0.00032876,12]
[369083158,1751461849106,-460.0,0.00032876,12]
[369083159,1751461849115,-2060.32,0.00032876,12]
[369083160,1751461849125,-460.0,0.00032876,12]
[369083161,1751461849134,-4097.57,0.00032876,12]
[369083162,1751461849143,-10032.7,0.00032876,12]
[369083163,1751461849153,-575.08,0.00032876,12]
[369083164,1751461849162,-520.0,0.00032876,12]
[369083165,1751461849171,-460.0,0.00032876,12]
[369083166,1751461849181,-460.0,0.00032876,12]
[369083167,1751461849190,-1557.34,0.00032876,12]
[369083168,1751461849199,-1998.16,0.00032876,12]
[369083169,1751461849209,-978.86,0.00032876,12]
[369083170,1751461849218,-579.69545892,0.00032876,12]
[369083171,1751461849227,-1553.85,0.00032876,12]
[369083172,1751461849237,-490.0,0.00032876,12]
[369083173,1751461849247,-1962.54,0.00032876,12]
[369083174,1751461849256,-4130.51,0.00032876,12]
[369083175,1751461849265,-2351.4,0.00032876,12]
[369083176,1751461849275,-460.0,0.00032876,12]
[369083177,1751461849284,-460.0,0.00032876,12]
[369083178,1751461849293,-460.0,0.00032876,12]
[369083179,1751461849302,-1628.23,0.00032876,12]
[369083180,1751461849311,-460.0,0.00032876,12]
[369083181,1751461849321,-460.0,0.00032876,12]
[369083182,1751461849330,-1873.63,0.00032876,12]
[369083183,1751461849339,-490.0,0.00032876,12]
[369083184,1751461849348,-460.0,0.00032876,12]
[369083185,1751461849358,-460.0,0.00032876,12]
[369083186,1751461849367,-490.0,0.00032876,12]
[369083187,1751461849377,-460.0,0.00032876,12]
[369083188,1751461849386,-1647.64,0.00032876,12]
[369083189,1751461849395,-1475.74,0.00032876,12]
[369083190,1751461849404,-1289.18,0.00032876,12]
[369083191,1751461849414,-460.0,0.00032876,12]
[369083192,1751461849423,-1252.52,0.00032876,12]
[369083193,1751461849432,-460.0,0.00032876,12]
[369083194,1751461849442,-520.0,0.00032876,12]
[369083195,1751461849451,-460.0,0.00032876,12]
[369083196,1751461849460,-1646.89,0.00032876,12]
[369083197,1751461849469,-490.0,0.00032876,12]
[369083198,1751461849479,-460.0,0.00032876,12]
[369083199,1751461849488,-1136.06,0.00032876,12]
[369083200,1751461849498,-1446.68,0.00032876,12]
[369083201,1751461849507,-583.17077845,0.00032876,12]
[369083202,1751461849516,-460.0,0.00032876,12]
[369083203,1751461849527,-970.79,0.00032876,12]
[369083204,1751461849536,-460.0,0.00032876,12]
[369083205,1751461849545,-1436.23,0.00032876,12]
[369083206,1751461849554,-520.0,0.00032876,12]
[369083207,1751461849564,-613.06,0.00032876,12]
[369083208,1751461849574,-1105.99,0.00032876,12]
[369083209,1751461849583,-460.0,0.00032876,12]
[369083210,1751461849594,-1559.26,0.00032876,12]
[369083211,1751461849604,-460.0,0.00032876,12]
[369083212,1751461849614,-460.0,0.00032876,12]
[369083213,1751461849623,-460.0,0.00032876,12]
[369083214,1751461849633,-670.85,0.00032876,12]
[369083215,1751461849642,-460.0,0.00032876,12]
[369083216,1751461849652,-2146.77,0.00032876,12]
[369083217,1751461849662,-5121.51,0.00032876,12]
[369083218,1751461849672,-460.0,0.00032876,12]
[369083219,1751461849682,-1038.63,0.00032876,12]
[369083220,1751461849691,-1918.91,0.00032876,12]
[369083221,1751461849701,-1564.35,0.00032876,12]
[369083222,1751461849711,-909.23,0.00032876,12]
[369083223,1751461849720,-520.0,0.00032876,12]
[369083224,1751461849731,-460.0,0.00032876,12]
[369083225,1751461849741,-2174.06,0.00032876,12]
[369083226,1751461849751,-1120.2,0.00032876,12]
[369083227,1751461849762,-460.0,0.00032876,12]
[369083228,1751461849772,-535.52,0.00032876,12]
[369083229,1751461849782,-3169.8,0.00032876,12]
[369083230,1751461849792,-460.0,0.00032876,12]
[369083231,1751461849802,-2104.41,0.00032876,12]
[369083232,1751461849811,-484.34,0.00032876,12]
[369083233,1751461849821,-490.0,0.00032876,12]
[369083234,1751461849831,-490.0,0.00032876,12]
[369083235,1751461849842,-1275.26,0.00032876,12]
[369083236,1751461849853,-723.01,0.00032876,12]
[369083237,1751461849862,-1464.54,0.00032876,12]
[369083238,1751461849873,-570.5,0.00032876,12]
[369083239,1751461849885,-1565.03,0.00032876,12]
[369083240,1751461849896,-460.0,0.00032876,12]
[369083241,1751461849906,-460.0,0.00032876,12]
[369083242,1751461849916,-1504.75,0.00032876,12]
[369083243,1751461849927,-18687.29,0.00032876,12]
[369083244,1751461849937,-530.1736012,0.00032876,12]
[369083245,1751461849947,-490.0,0.00032876,12]
[369083246,1751461849958,-460.0,0.00032876,12]
[369083247,1751461849968,-1615.38,0.00032876,12]
[369083248,1751461849978,-549.24,0.00032876,12]
[369083249,1751461849988,-460.0,0.00032876,12]
[369083250,1751461849998,-460.0,0.00032876,12]
[369083251,1751461850009,-957.18,0.00032876,12]
[369083252,1751461850019,-460.0,0.00032876,12]
[369083253,1751461850029,-1198.72,0.00032876,12]
[369083254,1751461850038,-3087.78,0.00032876,12]
[369083255,1751461850048,-460.0,0.00032876,12]
[369083256,1751461850059,-964.37,0.00032876,12]
[369083257,1751461850068,-1100.86,0.00032876,12]
[369083258,1751461850079,-1500.0,0.00032876,60]
[369083259,1751461850089,-460.0,0.00032876,12]
[369083260,1751461850098,-460.0,0.00032876,12]
[369083261,1751461850108,-460.0,0.00032876,12]
[369083262,1751461850118,-460.0,0.00032876,12]
[369083263,1751461850128,-2230.31,0.00032876,12]
[369083264,1751461850138,-460.0,0.00032876,12]
[369083265,1751461850149,-3294.96,0.00032876,12]
[369083266,1751461850160,-490.0,0.00032876,12]
[369083267,1751461850170,-460.0,0.00032876,12]
[369083268,1751461850179,-460.0,0.00032876,12]
[369083269,1751461850188,-460.0,0.00032876,12]
[369083270,1751461850197,-1685.4,0.00032876,12]
[369083271,1751461850206,-121917.67,0.00032876,12]
[369083272,1751461850216,-2147.17,0.00032876,12]
[369083273,1751461850226,-1192.83,0.00032876,12]
[369083274,1751461850236,-470.49,0.00032876,12]
[369083275,1751461850246,-460.0,0.00032876,12]
[369083276,1751461850256,-460.0,0.00032876,12]
[369083277,1751461850266,-460.0,0.00032876,12]
[369083278,1751461850276,-1232.51,0.00032876,12]
[369083279,1751461850286,-460.0,0.00032876,12]
[369083280,1751461850296,-1549.15,0.00032876,12]
[369083281,1751461850305,-1461.97,0.00032876,12]
[369083282,1751461850314,-468.33,0.00032876,12]
[369083283,1751461850324,-460.0,0.00032876,12]
[369083284,1751461850335,-996.74,0.00032876,12]
[369083285,1751461850345,-1985.92,0.00032876,12]
[369083286,1751461850355,-5046.96547766,0.00032876,12]
[369083287,1751461850364,-460.0,0.00032876,12]
[369083288,1751461850374,-460.0,0.00032876,12]
[369083289,1751461850383,-1444.9,0.00032876,12]
[369083290,1751461850393,-6645.29,0.00032876,12]
[369083291,1751461850404,-460.0,0.00032876,12]
[369083292,1751461850415,-2332.84,0.00032876,12]
[369083293,1751461850424,-3858.19,0.00032876,12]
[369083294,1751461850434,-527.55442196,0.00032876,12]
[369083295,1751461850442,-460.0,0.00032876,12]
[369083296,1751461850452,-460.0,0.00032876,12]
[369083297,1751461850462,-460.0,0.00032876,12]
[369083298,1751461850473,-460.0,0.00032876,12]
[369083299,1751461850483,-490.0,0.00032876,12]
[369083300,1751461850492,-460.0,0.00032876,120]
[369083301,1751461850501,-496.26565015,0.00032876,12]
[369083302,1751461850509,-460.0,0.00032876,12]
[369083303,1751461850519,-1561.64,0.00032876,12]
[369083304,1751461850528,-460.0,0.00032876,12]
[369083305,1751461850539,-527.45,0.00032876,12]
[369083306,1751461850551,-371.2159533,0.00032876,12]
[369083307,1751461850561,-774.0,0.00032876,12]
[369083308,1751461850572,-460.0,0.00032876,12]
[369083309,1751461850583,-460.0,0.00032876,12]
[369083310,1751461850593,-2002.08,0.00032876,12]
[369083311,1751461850603,-2292.38,0.00032876,12]
[369083312,1751461850612,-409.42085186,0.00032876,12]
[369083313,1751461850623,-1502.0,0.00032876,12]
[369083314,1751461850634,-460.0,0.00032876,12]
[369083315,1751461850645,-490.0,0.00032876,12]